bitfinex/quotes_SOLUSD_20251031
["timestamp","ask_amount","ask_price","bid_price","bid_amount"]
[1761913654293,3.03495009,188.89,188.86,0.66]
[1761913655306,1.94193841,188.88,188.84,19.19420392]
[1761913655505,1.94193841,188.88,188.85,0.66]
[1761913656210,2.66193841,188.88,188.84,5.29548824]
[1761913656400,2.66193841,188.88,188.84,5.95548824]
[1761913656709,1.94193841,188.89,188.85,0.66]
[1761913657088,2.66193841,188.88,188.83,5.95575269]
[1761913657285,1.94193841,188.87,188.83,0.66]
[1761913657488,0.72,188.88,188.84,0.66]
[1761913657700,1.94193841,188.87,188.84,0.66]
[1761913658013,2.66193841,188.88,188.84,0.66]
[1761913658587,1.94193841,188.88,188.84,0.66]
[1761913658998,2.66193841,188.88,188.84,0.66]
[1761913659309,1.94193841,188.88,188.84,0.66]
[1761913659610,1.94193841,188.87,188.84,5.95543347]
[1761913659812,2.66193841,188.88,188.84,5.95543347]
[1761913659994,2.66193841,188.88,188.85,0.66]
[1761913661489,7.956313,188.88,188.83,0.66]
[1761913661809,2.66193841,188.87,188.82,5.95604914]
[1761913662015,1.94193841,188.86,188.82,5.95604914]
[1761913662507,1.94193841,188.86,188.83,0.66]
[1761913663918,2.66193841,188.87,188.83,0.66]
[1761913665431,2.66193841,188.86,188.83,0.66]
[1761913665632,1.94193841,188.85,188.81,0.66]
[1761913665811,1.94193841,188.84,188.8,0.66]
[1761913666008,2.66193841,188.84,188.81,0.66]
[1761913666297,1.94193841,188.85,188.81,0.66]
[1761913667313,1.94193841,188.85,188.81,5.95629287]
[1761913667513,1.94193841,188.85,188.82,0.66]
[1761913670110,1.94193841,188.85,188.82,5.95581607]
[1761913671698,2.66193841,188.85,188.8,19.1980611]
[1761913672020,2.66193841,188.85,188.81,0.66]
[1761913673303,2.66193841,188.85,188.82,5.29604914]
[1761913674819,1.94193841,188.84,188.8,18.5380611]
[1761913675032,1.94193841,188.83,188.8,19.1980611]
[1761913676028,1.94193841,188.83,188.81,0.66]
[1761913676230,0.72,188.85,188.81,5.95614664]
[1761913676608,1.94193841,188.84,188.81,5.95614664]
[1761913676823,1.94193841,188.83,188.79,0.66]
[1761913677023,2.66193841,188.83,188.79,0.66]
[1761913677217,2.66193841,188.83,188.79,5.95689072]
[1761913677526,1.94193841,188.83,188.79,5.95689072]
[1761913677719,1.94193841,188.83,188.8,0.66]
[1761913678101,1.94193841,188.83,188.81,5.29632964]
[1761913678901,1.94193841,188.83,188.81,5.96632964]
[1761913679323,1.94193841,188.83,188.81,5.29632964]
[1761913679506,2.62193841,188.83,188.81,5.29632964]
[1761913680123,1.94193841,188.83,188.81,5.29632964]
[1761913680426,1.94193841,188.84,188.81,5.96632964]
[1761913681432,0.68,188.85,188.81,5.96632964]
[1761913681617,1.94193841,188.84,188.81,5.96632964]
[1761913682833,0.68,188.85,188.81,10.59130308]
[1761913683017,1.94193841,188.84,188.81,11.26130308]
[1761913683630,0.68,188.85,188.81,11.26130308]
[1761913683924,1.94193841,188.84,188.81,11.26130308]
[1761913684339,0.68,188.85,188.81,10.59130308]
[1761913684517,1.94193841,188.88,188.83,1.94193841]
[1761913684707,2.62193841,188.89,188.82,13.91143357]
[1761913684908,2.62193841,188.89,188.83,1.94193841]
[1761913685108,2.62193841,188.89,188.83,2.61193841]
[1761913685308,2.62193841,188.89,188.84,0.67]
[1761913685932,2.62193841,188.89,188.84,5.96526778]
[1761913686146,1.94193841,188.88,188.84,0.67]
[1761913686312,1.94193841,188.88,188.85,0.67]
[1761913688429,1.94193841,188.88,188.85,5.96511652]
[1761913689134,1.94193841,188.88,188.85,0.67]
[1761913689335,1.94193841,188.88,188.85,5.96518926]
[1761913689748,1.94193841,188.88,188.85,5.29518926]
[1761913690040,1.94193841,188.88,188.86,0.67]
[1761913690631,0.2,188.91,188.86,2.61193841]
[1761913690813,0.2,188.91,188.87,1.94193841]
[1761913691013,0.2,188.91,188.87,2.61193841]
[1761913691243,0.2,188.91,188.88,0.67]
[1761913691442,0.2,188.91,188.89,5.2940865]
[1761913691937,0.2,188.91,188.9,0.67]
[1761913692341,0.2,188.91,188.9,5.96380624]
[1761913693017,8.11551787,188.91,188.85,2.1220722]
[1761913693364,8.11551787,188.91,188.76,26.48831435]
[1761913693365,1.94193841,188.86,188.82,0.67]
[1761913693517,1.94193841,188.85,188.82,0.67]
[1761913694217,1.94193841,188.84,188.82,0.67]
[1761913694422,1.94193841,188.84,188.82,5.96590831]
[1761913699532,1.94193841,188.83,188.8,5.29661016]
[1761913699729,1.94193841,188.82,188.8,5.29661016]
[1761913700351,1.94193841,188.82,188.79,6.00687373]
[1761913701145,1.94193841,188.83,188.8,0.71]
[1761913701353,1.94193841,188.83,188.8,6.00634181]
[1761913701745,1.94193841,188.83,188.81,0.71]
[1761913702048,1.94193841,188.83,188.8,6.00634181]
[1761913703365,1.94193841,188.83,188.81,0.71]
[1761913703824,1.94193841,188.82,188.8,0.71]
[1761913704450,0.67,188.85,188.8,6.00646979]
[1761913704654,1.94193841,188.82,188.8,6.00646979]
[1761913705952,1.94193841,188.82,188.8,5.29646979]
[1761913706260,1.94193841,188.82,188.8,0.71]
[1761913707133,1.94193841,188.81,188.78,6.00717131]
[1761913707336,1.94193841,188.81,188.79,0.71]
[1761913707736,1.94193841,188.8,188.78,5.29717131]
[1761913707939,1.94193841,188.79,188.78,5.29717131]
[1761913708142,1.94193841,188.79,188.77,47.6]
[1761913708382,1.94193841,188.78,188.77,0.71]
[1761913709036,0.67,188.81,188.77,0.71]
[1761913709037,1.94193841,188.79,188.77,0.71]
[1761913710059,1.94193841,188.79,188.77,0.66]
[1761913711269,1.94193841,188.79,188.77,5.95743605]
[1761913711647,1.94193841,188.8,188.77,5.29743605]
[1761913711869,1.94193841,188.8,188.78,0.66]
[1761913712546,0.71,188.82,188.78,0.66]
[1761913712759,1.94193841,188.81,188.78,0.66]
[1761913712965,1.94193841,188.79,188.76,0.66]
[1761913713137,1.94193841,188.78,188.75,62.78675199]
[1761913713344,1.94193841,188.78,188.75,0.66]
[1761913713754,1.94193841,188.76,188.72,0.66]
[1761913713952,20.592,188.79,188.68,0.52999788]
[1761913713953,1.94193841,188.73,188.7,0.66]
[1761913714154,1.94193841,188.72,188.7,8.42775364]
[1761913714465,1.94193841,188.72,188.7,0.66]
[1761913715963,1.94193841,188.72,188.7,5.95941362]
[1761913716352,1.94193841,188.72,188.71,0.66]
[1761913716757,1.94193841,188.72,188.71,5.95913624]
[1761913716953,1.94193841,188.72,188.71,0.66]
[1761913717464,3.03948507,188.73,188.71,0.66]
[1761913718879,9.78882769,188.78,188.71,5.95902588]
[1761913719080,3.03948507,188.78,188.73,3.03948507]
[1761913719249,3.03948507,188.77,188.72,8.99731013]
[1761913719447,3.03948507,188.77,188.73,0.66]
[1761913720150,3.03948507,188.76,188.73,0.66]
[1761913720471,13.24092318,188.81,188.73,30.58168161]
[1761913720472,3.03948507,188.79,188.73,30.58168161]
[1761913720652,0.71,188.81,188.73,30.58168161]
[1761913720845,3.03948507,188.8,188.75,3.03948507]
[1761913721245,3.03948507,188.8,188.76,0.66]
[1761913721464,6.00548824,188.84,188.77,3.03948507]
[1761913721688,3.03948507,188.82,188.77,3.03948507]
[1761913721848,3.03948507,188.81,188.77,0.66]
[1761913722462,3.03948507,188.81,188.78,5.29717131]
[1761913722849,3.03948507,188.81,188.78,5.95717131]
[1761913723574,3.03948507,188.81,188.78,5.29717131]
[1761913723899,3.03948507,188.81,188.78,5.95717131]
[1761913724448,3.03948507,188.81,188.79,0.66]
[1761913724679,3.03948507,188.82,188.79,0.66]
[1761913725256,21.302,188.83,188.79,0.66]
[1761913725471,3.03948507,188.82,188.79,0.66]
[1761913725785,6.00510472,188.86,188.79,0.66]
[1761913726083,3.03948507,188.84,188.79,8.99497331]
[1761913726258,3.03948507,188.83,188.79,8.99497331]
[1761913726457,3.03948507,188.83,188.8,0.66]
[1761913727461,3.74948507,188.83,188.79,13.63160669]
[1761913727666,3.74948507,188.83,188.79,5.95663338]
[1761913727871,3.03948507,188.83,188.8,0.66]
[1761913730080,5.29523686,188.85,188.8,0.66]
[1761913730081,6.00523686,188.85,188.8,0.66]
[1761913730283,3.03948507,188.81,188.79,5.29523686]
[1761913730468,3.03948507,188.8,188.75,10.48882769]
[1761913730791,3.03948507,188.8,188.76,5.99523686]
[1761913731087,3.03948507,188.8,188.76,11.29296242]
[1761913731272,3.03948507,188.8,188.77,0.7]
[1761913733181,3.03948507,188.8,188.77,5.99738843]
[1761913734382,3.03948507,188.79,188.76,11.29292651]
[1761913734679,3.03948507,188.79,188.76,5.99768965]
[1761913735684,0.66,188.81,188.76,5.99768965]
[1761913735685,3.03948507,188.8,188.77,0.7]
[1761913736384,3.03948507,188.8,188.77,5.99726207]
[1761913737079,3.03948507,188.8,188.78,0.7]
[1761913737278,3.03948507,188.8,188.77,5.99726207]
[1761913737986,3.03948507,188.8,188.77,5.29726207]
[1761913738172,3.03948507,188.8,188.78,0.7]
[1761913738488,3.69948507,188.81,188.78,5.99716997]
[1761913738680,3.03948507,188.81,188.78,5.99716997]
[1761913738878,3.03948507,188.81,188.79,0.68]
[1761913739392,3.03948507,188.81,188.78,5.29716997]
[1761913739592,3.03948507,188.81,188.78,0.68]
[1761913740300,6.01552371,188.84,188.78,0.68]
[1761913740503,3.03948507,188.83,188.78,0.68]
[1761913740867,0.72,188.83,188.78,0.68]
[1761913741072,3.75948507,188.83,188.78,0.68]
[1761913741600,0.72,188.82,188.78,5.97703963]
[1761913742469,0.72,188.82,188.78,5.29703963]
[1761913742688,0.72,188.82,188.79,0.68]
[1761913743275,3.75948507,188.82,188.79,0.68]
[1761913745981,3.75948507,188.82,188.79,5.97683594]
[1761913746498,0.72,188.83,188.79,5.97683594]
[1761913746684,3.03948507,188.82,188.79,5.97683594]
[1761913748503,3.03948507,188.81,188.77,5.29718972]
[1761913748682,3.03948507,188.8,188.78,0.68]
[1761913749002,3.03948507,188.81,188.78,0.68]
[1761913750298,3.03948507,188.81,188.78,5.97692693]
[1761913751297,3.03948507,188.82,188.78,5.97692693]
[1761913751498,3.03948507,188.82,188.79,0.68]
[1761913753507,3.03948507,188.82,188.79,5.97685011]
[1761913756790,3.75948507,188.82,188.79,5.97685011]
[1761913757403,3.03948507,188.82,188.79,5.97685011]
[1761913757889,1.84642447,188.91,188.81,3.03948507]
[1761913758087,3.95948507,188.91,188.83,9.78882769]
[1761913758291,3.03948507,188.85,188.83,9.78882769]
[1761913758690,3.03948507,188.85,188.83,0.72]
[1761913758921,3.03948507,188.86,188.83,0.72]
[1761913759221,3.03948507,188.86,188.84,5.29548824]
[1761913759699,3.03948507,188.86,188.84,6.01548824]
[1761913760391,3.03948507,188.86,188.82,10.07315083]
[1761913760594,3.03948507,188.86,188.83,0.72]
[1761913762721,3.03948507,188.86,188.84,5.29548824]
[1761913763221,3.03948507,188.86,188.84,6.01548824]
[1761913763908,3.03948507,188.86,188.85,0.72]
[1761913764609,3.03948507,188.86,188.84,0.72]
[1761913765913,3.03948507,188.87,188.84,0.72]
[1761913766632,3.03948507,188.87,188.84,6.01546572]
[1761913767431,3.73948507,188.87,188.84,6.01546572]
[1761913768020,3.03948507,188.86,188.84,6.01546572]
[1761913768932,5.29380624,188.9,188.84,6.01546572]
[1761913769129,3.03948507,188.86,188.84,6.01546572]
[1761913769731,3.03948507,188.86,188.82,15.08459645]
[1761913770030,0.67,188.85,188.82,15.75459645]
[1761913770237,3.70948507,188.86,188.82,15.75459645]
[1761913770434,3.03948507,188.83,188.8,48.27]
[1761913770616,3.03948507,188.82,188.79,15.75566979]
[1761913771024,3.03948507,188.82,188.8,0.67]
[1761913771337,3.03948507,188.82,188.8,5.96655104]
[1761913772127,3.03948507,188.84,188.81,0.67]
[1761913772335,3.03948507,188.83,188.81,0.67]
[1761913773041,3.03948507,188.83,188.81,5.96632719]
[1761913774940,3.03948507,188.82,188.8,5.29661016]
[1761913775321,3.03948507,188.82,188.8,5.96661016]
[1761913775521,0.67,188.84,188.8,5.96661016]
[1761913775957,3.03948507,188.82,188.8,5.96661016]
[1761913776443,3.03948507,188.81,188.76,5.29380624]
[1761913776625,3.03948507,188.79,188.78,0.67]
[1761913777344,1.94382763,188.79,188.78,0.67]
[1761913778346,20.592,188.86,188.79,5.29689072]
[1761913778647,0.67,188.85,188.79,5.29689072]
[1761913778839,1.94382763,188.83,188.79,5.96689072]
[1761913779255,1.94382763,188.83,188.8,0.67]
[1761913780647,1.94382763,188.82,188.8,0.67]
[1761913782148,0.67,188.84,188.8,0.67]
[1761913782446,10.07315083,188.92,188.78,9.78882769]
[1761913782447,1.94382763,188.81,188.78,0.67]
[1761913782632,1.94382763,188.79,188.78,0.67]
[1761913783844,1.94382763,188.79,188.77,52.89743733]
[1761913784048,1.94382763,188.78,188.77,63.35626502]
[1761913784257,1.94382763,188.78,188.77,0.67]
[1761913784422,7.91100085,188.78,188.73,5.29831521]
[1761913784623,1.94382763,188.74,188.72,0.67]
[1761913784845,9.71913815,188.73,188.69,0.67]
[1761913785053,1.94382763,188.7,188.69,0.67]
[1761913787649,1.94382763,188.7,188.67,5.30023329]
[1761913787650,2.61382763,188.7,188.67,5.30023329]
[1761913787835,1.94382763,188.71,188.67,5.97023329]
[1761913788052,1.94382763,188.71,188.68,0.67]
[1761913790359,1.94382763,188.71,188.68,5.96990365]
[1761913792855,0.67,188.73,188.68,5.96990365]
[1761913793064,1.94382763,188.7,188.68,5.96990365]
[1761913793856,1.94382763,188.69,188.65,52.90058553]
[1761913794165,1.94382763,188.69,188.66,0.67]
[1761913794356,1.94382763,188.67,188.65,47.6]
[1761913794544,0.67,188.68,188.64,5.5011024]
[1761913794545,1.94382763,188.66,188.64,5.5011024]
[1761913794749,1.94382763,188.66,188.64,6.1711024]
[1761913795564,5.2992553,188.71,188.64,6.1711024]
[1761913795565,2.61382763,188.65,188.64,0.2]
[1761913796861,1.94382763,188.65,188.64,0.87]
[1761913797068,1.94382763,188.66,188.64,0.87]
[1761913797264,20.592,188.72,188.64,0.2]
[1761913797265,0.67,188.68,188.64,0.2]
[1761913797565,1.94382763,188.66,188.64,0.2]
[1761913797764,1.94382763,188.65,188.64,0.2]
[1761913799378,1.94382763,188.66,188.64,0.2]
[1761913800189,2.63382763,188.66,188.64,0.2]
[1761913800390,5.29937237,188.71,188.64,0.2]
[1761913800584,1.94382763,188.68,188.64,0.9]
[1761913801262,2.63382763,188.68,188.64,0.9]
[1761913801482,2.63382763,188.68,188.64,6.20097622]
[1761913801657,1.94382763,188.67,188.64,0.2]
[1761913801858,2.63382763,188.67,188.64,0.2]
[1761913802486,2.63382763,188.73,188.66,1.94382763]
[1761913802797,2.63382763,188.72,188.66,1.94382763]
[1761913803076,1.94382763,188.7,188.66,0.7]
[1761913803490,1.94382763,188.69,188.66,0.7]
[1761913803781,1.94382763,188.69,188.66,6.00044676]
[1761913804363,0.69,188.72,188.67,0.7]
[1761913804557,1.94382763,188.71,188.67,0.7]
[1761913805180,2.63382763,188.71,188.67,0.7]
[1761913805887,1.94382763,188.7,188.67,6.00011216]
[1761913806075,1.94382763,188.69,188.65,5.30082162]
[1761913806269,1.94382763,188.69,188.65,6.00082162]
[1761913806471,1.94382763,188.69,188.66,0.7]
[1761913808090,1.94382763,188.69,188.66,6.00046373]
[1761913808478,1.94382763,188.69,188.67,0.7]
[1761913809873,0.69,188.71,188.67,0.7]
[1761913810071,5.29873231,188.73,188.68,5.2999788]
[1761913810072,0.69,188.73,188.68,5.2999788]
[1761913810390,2.63382763,188.75,188.69,1.94382763]
[1761913810580,0.69,188.77,188.71,1.94382763]
[1761913810789,0.69,188.77,188.72,2.64382763]
[1761913810970,2.63382763,188.77,188.72,0.7]
[1761913811170,0.69,188.81,188.73,2.64382763]
[1761913811375,1.94382763,188.76,188.73,0.7]
[1761913811985,0.69,188.78,188.73,0.7]
[1761913812179,1.94382763,188.78,188.74,5.29829394]
[1761913812672,1.94382763,188.78,188.74,5.99829394]
[1761913812880,1.94382763,188.77,188.74,5.99829394]
[1761913814167,2.63382763,188.78,188.74,5.99829394]
[1761913814889,1.94382763,188.78,188.74,5.99829394]
[1761913816292,0.69,188.79,188.74,5.99829394]
[1761913816476,1.94382763,188.78,188.74,5.99829394]
[1761913816791,2.63382763,188.78,188.74,5.99829394]
[1761913817564,0.66,188.84,188.76,1.94382763]
[1761913817985,1.94382763,188.83,188.78,5.29717131]
[1761913818394,2.60382763,188.82,188.78,6.00717131]
[1761913818588,1.94382763,188.79,188.74,5.29806256]
[1761913818786,1.94382763,188.78,188.74,6.00806256]
[1761913818977,1.94382763,188.79,188.75,0.71]
[1761913821078,2.60382763,188.79,188.75,0.71]
[1761913821275,1.94382763,188.79,188.75,0.71]
[1761913821486,2.60382763,188.79,188.75,6.00791511]
[1761913821690,1.94382763,188.8,188.75,6.00791511]
[1761913821874,1.94382763,188.81,188.76,0.71]
[1761913822074,2.60382763,188.82,188.76,0.71]
[1761913822270,20.592,188.84,188.76,2.65382763]
[1761913822495,2.60382763,188.83,188.77,0.71]
[1761913823086,2.30642447,188.86,188.78,9.78882769]
[1761913823298,2.60382763,188.86,188.79,1.94382763]
[1761913823527,1.94382763,188.84,188.79,0.71]
[1761913823679,1.94382763,188.83,188.8,5.29661016]
[1761913823879,1.94382763,188.84,188.8,6.00661016]
[1761913824104,1.94382763,188.82,188.78,5.29692218]
[1761913824280,1.94382763,188.81,188.79,0.71]
[1761913824806,1.94382763,188.82,188.79,0.71]
[1761913825713,1.94382763,188.82,188.8,5.29661016]
[1761913826008,2.60382763,188.81,188.76,10.49882769]
[1761913826213,1.94382763,188.79,188.77,5.29745192]
[1761913826409,1.94382763,188.8,188.77,6.00745192]
[1761913826911,1.94382763,188.81,188.78,0.71]
[1761913827282,1.94382763,188.81,188.77,5.29745192]
[1761913827487,1.94382763,188.8,188.78,0.71]
[1761913827689,1.94382763,188.8,188.78,6.00707404]
[1761913827994,1.94382763,188.8,188.77,5.29741922]
[1761913828403,5.95608731,188.82,188.74,0.28432314]
[1761913828404,1.94382763,188.78,188.74,10.49882769]
[1761913828584,0.66,188.79,188.74,0.71]
[1761913828585,1.94382763,188.77,188.74,0.71]
[1761913828791,1.94382763,188.77,188.75,0.71]
[1761913829406,1.94382763,188.78,188.76,5.29773257]
[1761913829690,1.94382763,188.78,188.75,0.71]
[1761913830193,0.67,188.8,188.75,6.00800395]
[1761913830498,1.94382763,188.79,188.75,6.00800395]
[1761913830696,1.94382763,188.78,188.75,6.00800395]
[1761913831019,1.94382763,188.77,188.75,5.29800395]
[1761913831212,1.94382763,188.77,188.7,0.69]
[1761913831213,1.94382763,188.76,188.7,0.69]
[1761913831515,1.94382763,188.71,188.68,0.69]
[1761913831706,1.94382763,188.7,188.67,5.30024677]
[1761913831906,0.67,188.75,188.64,5.50109679]
[1761913832113,1.94382763,188.69,188.65,0.69]
[1761913832312,0.67,188.74,188.66,1.94382763]
[1761913832518,1.94382763,188.71,188.67,0.69]
[1761913833101,1.94382763,188.7,188.67,0.69]
[1761913833502,5.96879481,188.73,188.67,5.99024928]
[1761913833802,1.94382763,188.7,188.67,5.99024928]
[1761913834815,1.94382763,188.72,188.68,0.69]
[1761913835125,13.23992598,188.83,188.71,11.73265532]
[1761913835324,2.61382763,188.79,188.73,1.94382763]
[1761913835717,1.94382763,188.78,188.73,0.69]
[1761913836430,0.67,188.79,188.73,0.69]
[1761913836431,1.94382763,188.79,188.74,5.29829394]
[1761913836627,1.94382763,188.8,188.74,7.24212157]
[1761913836923,22.53582763,188.8,188.74,7.93212157]
[1761913837313,24.29934911,188.8,188.74,9.02564305]
[1761913837829,3.03734911,188.79,188.74,5.29829394]
[1761913838130,3.03734911,188.79,188.75,0.69]
[1761913838831,3.03734911,188.79,188.76,5.29773257]
[1761913839205,3.03734911,188.81,188.77,0.69]
[1761913840309,3.03734911,188.8,188.77,0.69]
[1761913840507,3.03734911,188.78,188.75,5.2979362]
[1761913840719,3.03734911,188.76,188.7,0.69]
[1761913840925,20.592,188.79,188.7,0.69]
[1761913840926,3.03734911,188.71,188.7,0.69]
[1761913841226,3.03734911,188.71,188.69,5.29969791]
[1761913841417,3.03734911,188.7,188.69,5.29969791]
[1761913842130,3.03734911,188.7,188.69,5.98969791]
[1761913842316,3.03734911,188.71,188.69,5.98969791]
[1761913842825,3.03734911,188.72,188.69,5.98969791]
[1761913843327,3.03734911,188.72,188.7,0.69]
[1761913843819,0.67,188.75,188.7,0.69]
[1761913844027,3.03734911,188.73,188.7,0.69]
[1761913845001,3.03734911,188.73,188.71,5.29913624]
[1761913845226,1.64642447,188.81,188.71,15.08796393]
[1761913845432,3.03734911,188.79,188.73,3.03734911]
[1761913845608,3.03734911,188.79,188.74,0.69]
[1761913847326,3.03734911,188.79,188.75,5.29801324]
[1761913847626,3.03734911,188.79,188.76,0.69]
[1761913848130,3.03734911,188.79,188.75,5.98801324]
[1761913848330,3.70734911,188.78,188.73,5.29830631]
[1761913848627,3.03734911,188.74,188.72,5.98882458]
[1761913848932,6.07469822,188.73,188.65,0.69]
[1761913849232,3.03734911,188.73,188.66,15.08935319]
[1761913849440,3.03734911,188.69,188.66,10.47882769]
[1761913850501,3.03734911,188.69,188.66,15.77931489]
[1761913850702,3.03734911,188.69,188.68,5.2999788]
[1761913851105,3.03734911,188.69,188.67,0.69]
[1761913851305,3.03734911,188.69,188.67,5.99025681]
[1761913851520,3.03734911,188.69,188.67,5.30025681]
[1761913851708,0.67,188.75,188.68,0.69]
[1761913851925,3.03734911,188.74,188.68,3.72734911]
[1761913852323,3.03734911,188.74,188.69,0.69]
[1761913852510,3.03734911,188.73,188.69,0.69]
[1761913852919,3.03734911,188.73,188.7,5.29941706]
[1761913853317,7.47434829,188.73,188.7,5.98941706]
[1761913853636,7.47434829,188.74,188.7,5.29941706]
[1761913853837,7.47434829,188.74,188.71,0.69]
[1761913854325,7.47434829,188.76,188.71,0.69]
[1761913855326,7.47434829,188.76,188.72,5.29885544]
[1761913856046,7.47434829,188.77,188.73,0.69]
[1761913856427,0.67,188.78,188.73,0.69]
[1761913856428,7.47434829,188.76,188.73,0.69]
[1761913856725,7.47434829,188.77,188.73,0.69]
[1761913857538,7.47434829,188.77,188.74,5.29829394]
[1761913857730,7.47434829,188.79,188.74,5.29829394]
[1761913857938,7.47434829,188.8,188.75,0.69]
[1761913858330,8.14434829,188.8,188.75,0.69]
[1761913858946,8.14434829,188.8,188.76,5.29773257]
[1761913859151,8.14434829,188.8,188.75,5.98800437]
[1761913859740,7.47434829,188.81,188.75,26.70738577]
[1761913859940,7.47434829,188.81,188.76,0.71]
[1761913860244,8.19434829,188.83,188.77,7.47434829]
[1761913860739,9.12077276,188.89,188.82,7.47434829]
[1761913860740,0.72,188.89,188.82,7.47434829]
[1761913860944,7.47434829,188.86,188.82,0.71]
[1761913861117,7.47434829,188.83,188.8,20.592]
[1761913861318,7.47434829,188.82,188.79,5.29676781]
[1761913861718,7.47434829,188.81,188.79,5.29676781]
[1761913861931,0.72,188.83,188.77,34.11943577]
[1761913861932,7.47434829,188.8,188.77,25.88918415]
[1761913862137,7.47434829,188.79,188.77,25.88918415]
[1761913862315,7.47434829,188.8,188.77,25.88918415]
[1761913862517,7.47434829,188.79,188.77,25.88918415]
[1761913863218,7.47434829,188.78,188.76,5.297728]
[1761913863423,7.47434829,188.77,188.76,5.297728]
[1761913864447,7.47434829,188.77,188.75,5.29801324]
[1761913865243,7.47434829,188.76,188.73,5.29851679]
[1761913865645,7.47434829,188.76,188.73,6.00851679]
[1761913866018,0.72,188.79,188.73,6.00851679]
[1761913866331,7.47434829,188.76,188.73,6.00851679]
[1761913866843,7.47434829,188.77,188.73,6.00851679]
[1761913867340,7.47434829,188.77,188.74,0.71]
[1761913868423,7.47434829,188.77,188.74,6.00815605]
[1761913869445,0.72,188.79,188.74,6.00815605]
[1761913869446,7.47434829,188.76,188.74,0.71]
[1761913869649,7.47434829,188.75,188.72,5.29868088]
[1761913870057,7.47434829,188.74,188.7,63.39800318]
[1761913870654,6.01763998,188.77,188.71,0.71]
[1761913870848,7.47434829,188.74,188.71,0.71]
[1761913872331,7.47434829,188.74,188.71,6.00902298]
[1761913872654,0.72,188.81,188.73,7.47434829]
[1761913872842,4.46285992,188.87,188.74,7.47434829]
[1761913872843,7.47434829,188.8,188.74,7.47434829]
[1761913873037,7.47434829,188.81,188.73,0.71]
[1761913873355,3.03642416,188.86,188.79,3.03642416]
[1761913873578,0.72,188.87,188.82,5.29604914]
[1761913873760,0.2,188.91,188.85,3.03642416]
[1761913873951,0.2,188.91,188.86,3.03642416]
[1761913874257,0.2,188.91,188.86,3.74642416]
[1761913874434,0.2,188.91,188.87,0.71]
[1761913874956,0.2,188.91,188.87,6.00452895]
[1761913875460,0.2,188.91,188.88,8.16928849]
[1761913875748,0.2,188.91,188.85,0.71]
[1761913875749,0.92,188.91,188.85,0.71]
[1761913876051,7.45928849,188.9,188.85,13.46442998]
[1761913876260,7.65928849,188.91,188.85,13.46442998]
[1761913876556,0.2,188.91,188.88,7.45928849]
[1761913876960,0.2,188.91,188.88,8.16928849]
[1761913877139,0.2,188.91,188.89,6.0040865]
[1761913877837,0.2,188.91,188.9,18.78181994]
[1761913878049,0.2,188.91,188.9,10.79315083]
[1761913878461,0.2,188.91,188.9,0.72]
[1761913879057,0.2,188.91,188.9,6.01380624]
[1761913879568,0.2,188.91,188.86,8.70878123]
[1761913879743,7.45928849,188.9,188.86,0.72]
[1761913879933,7.45928849,188.89,188.86,9.78882769]
[1761913880130,7.45928849,188.88,188.84,6.01535026]
[1761913880437,7.45928849,188.9,188.84,13.47463875]
[1761913880758,7.45928849,188.9,188.85,0.72]
[1761913881132,7.45928849,188.9,188.85,6.01501583]
[1761913881332,8.13928849,188.9,188.85,6.01501583]
[1761913881529,7.45928849,188.89,188.85,6.01501583]
[1761913881764,0.2,188.91,188.86,17.96811618]
[1761913882059,0.2,188.91,188.88,7.45928849]
[1761913882265,0.2,188.91,188.89,8.17928849]
[1761913882664,0.2,188.91,188.9,0.72]
[1761913883064,0.2,188.91,188.87,9.78882769]
[1761913883065,0.2,188.91,188.87,5.29450863]
[1761913883357,0.2,188.91,188.88,0.72]
[1761913884941,0.2,188.91,188.87,15.08333632]
[1761913885261,0.2,188.91,188.87,15.80333632]
[1761913885443,0.2,188.91,188.88,0.72]
[1761913885839,0.2,188.91,188.85,47.6]
[1761913885840,7.45928849,188.89,188.85,47.6]
[1761913886161,7.45928849,188.86,188.83,0.72]
[1761913886867,7.45928849,188.84,188.76,0.72]
[1761913887161,7.45928849,188.79,188.75,0.72]
[1761913887549,7.45928849,188.78,188.74,9.78882769]